bitfinex-derivatives/quotes_BTCF0:USTF0_20251209
["timestamp","ask_amount","ask_price","bid_price","bid_amount"]
[1765261035358,0.9025944,90088.0,90065.0,0.0179]
[1765261035569,0.0111038,90070.0,90066.0,0.05667]
[1765261035769,0.011104,90068.0,90066.0,0.05667]
[1765261035970,0.0260344,90067.0,90066.0,0.05667]
[1765261036171,0.3760344,90067.0,90066.0,0.05667]
[1765261037262,0.3760344,90067.0,90066.0,0.05867]
[1765261037862,0.3760344,90067.0,90066.0,0.05667]
[1765261038164,0.3760344,90067.0,90066.0,0.06167]
[1765261039566,0.3760344,90067.0,90066.0,0.0727742]
[1765261040573,0.3760344,90067.0,90066.0,0.06167]
[1765261046881,0.03,90067.0,90066.0,0.06167]
[1765261047078,0.05864523,90076.0,90075.0,0.07457]
[1765261047381,0.46669112,90076.0,90075.0,0.07457]
[1765261047884,0.46669112,90076.0,90075.0,0.0856731]
[1765261048180,0.46669112,90076.0,90075.0,0.0876731]
[1765261048379,0.45558802,90076.0,90075.0,0.0876731]
[1765261050680,0.45558802,90076.0,90075.0,0.07657]
[1765261056686,0.45558802,90076.0,90075.0,0.0876731]
[1765261058686,0.45558802,90076.0,90075.0,0.002]
[1765261060876,0.45558802,90076.0,90060.0,0.0179]
[1765261060877,0.45558802,90076.0,90060.0,0.04529]
[1765261061083,0.0111049,90061.0,90045.0,0.0179]
[1765261061282,0.0111051,90059.0,90051.0,0.0111061]
[1765261061583,0.02542148,90058.0,90057.0,0.05683654]
[1765261061784,0.40542148,90058.0,90057.0,0.05683654]
[1765261063293,0.40542148,90058.0,90057.0,0.05783654]
[1765261063785,0.40542148,90058.0,90057.0,0.05683654]
[1765261063985,0.40542148,90058.0,90057.0,0.05783654]
[1765261067895,0.08542148,90058.0,90057.0,0.05783654]
[1765261068100,0.06,90058.0,90057.0,0.05783654]
[1765261069097,0.04737559,90070.0,90065.0,0.01732]
[1765261069398,0.0111036,90071.0,90070.0,0.0845838]
[1765261069699,0.42537076,90071.0,90070.0,0.0845838]
[1765261070704,0.42737076,90071.0,90070.0,0.0845838]
[1765261070999,0.42937076,90071.0,90070.0,0.0845838]
[1765261071201,0.42937076,90071.0,90070.0,0.07348]
[1765261071202,0.44047436,90071.0,90070.0,0.07348]
[1765261071699,0.43847436,90071.0,90070.0,0.07348]
[1765261072492,0.43647436,90071.0,90070.0,0.04545]
[1765261072696,0.0111042,90066.0,90065.0,0.07348]
[1765261072904,0.46647496,90066.0,90065.0,0.07348]
[1765261073300,0.46647496,90066.0,90065.0,0.0845844]
[1765261073988,0.45537076,90066.0,90065.0,0.0845844]
[1765261074502,0.45537076,90066.0,90065.0,0.0855844]
[1765261078002,0.22537076,90066.0,90065.0,0.0855844]
[1765261079603,0.37537076,90066.0,90065.0,0.0855844]
[1765261081300,0.37537076,90066.0,90065.0,0.001]
[1765261081495,0.0111052,90058.0,90057.0,0.00016654]
[1765261081690,0.4211052,90058.0,90057.0,0.00016654]
[1765261081997,0.44647596,90058.0,90057.0,0.00016654]
[1765261082504,0.44647596,90058.0,90057.0,0.05632654]
[1765261082704,0.44647596,90058.0,90057.0,0.05732654]
[1765261082901,0.44647596,90058.0,90057.0,0.05932654]
[1765261085807,0.43537076,90058.0,90057.0,0.05932654]
[1765261092114,0.43537076,90058.0,90057.0,0.00316654]
[1765261092702,0.43537076,90058.0,90057.0,0.05947654]
[1765261092898,0.43637076,90058.0,90057.0,0.05747654]
[1765261093412,0.43537076,90058.0,90057.0,0.05747654]
[1765261094008,0.43537076,90058.0,90057.0,0.02957654]
[1765261094311,0.43637076,90058.0,90057.0,0.05647654]
[1765261095409,0.43624206,90058.0,90057.0,0.05647654]
[1765261098522,0.43624206,90058.0,90057.0,0.00016654]
[1765261099720,0.43624206,90058.0,90057.0,0.05647654]
[1765261106421,0.43524206,90058.0,90057.0,0.05647654]
[1765261107121,0.02524206,90058.0,90057.0,0.05647654]
[1765261107322,0.04738864,90070.0,90069.0,0.05631]
[1765261107519,0.37526302,90070.0,90069.0,0.05631]
[1765261108428,0.37626302,90070.0,90069.0,0.05631]
[1765261108926,0.37526302,90070.0,90069.0,0.05631]
[1765261109133,0.37626302,90070.0,90069.0,0.05631]
[1765261109522,0.37726302,90070.0,90069.0,0.05631]
[1765261111932,0.38836682,90070.0,90069.0,0.05631]
[1765261119927,0.37726302,90070.0,90069.0,0.05631]
[1765261122240,0.37626302,90070.0,90069.0,0.05631]
[1765261122837,0.37626302,90070.0,90069.0,0.02841]
[1765261123541,0.37626302,90070.0,90069.0,0.05824]
[1765261132849,0.001,90070.0,90069.0,0.05824]
[1765261133950,0.001,90070.0,90069.0,0.05924]
[1765261134242,0.00016654,90076.0,90075.0,0.0865931]
[1765261134446,0.07104154,90093.0,90090.0,0.0865913]
[1765261134650,0.02525612,90092.0,90090.0,0.0865913]
[1765261134941,0.02525612,90091.0,90090.0,0.0865913]
[1765261135141,0.41525612,90091.0,90090.0,0.0865913]
[1765261137734,0.42225612,90091.0,90090.0,0.0865913]
[1765261144954,0.397,90091.0,90090.0,0.0865913]
[1765261145360,0.007,90091.0,90090.0,0.0865913]
[1765261145950,0.007,90091.0,90090.0,0.5165913]
[1765261149164,0.357,90091.0,90090.0,0.0865913]
[1765261150264,0.354,90091.0,90090.0,0.0865913]
[1765261150449,0.354,90091.0,90090.0,0.0875913]
[1765261150656,0.35,90091.0,90090.0,0.0885913]
[1765261151165,0.35,90091.0,90090.0,0.0875913]
[1765261151355,0.35,90091.0,90090.0,0.0885913]
[1765261151767,0.35,90091.0,90090.0,0.0875913]
[1765261151958,0.35,90091.0,90090.0,0.0885913]
[1765261160668,0.3611012,90091.0,90090.0,0.002]
[1765261160868,0.38623017,90091.0,90090.0,0.002]
[1765261161466,0.38573631,90091.0,90090.0,0.002]
[1765261161868,0.04612897,90091.0,90090.0,0.0872613]
[1765261162164,0.41612897,90091.0,90090.0,0.0872613]
[1765261163875,0.41712897,90091.0,90090.0,0.0862613]
[1765261164268,0.41612897,90091.0,90090.0,0.0862613]
[1765261164573,0.41512897,90091.0,90090.0,0.0862613]
[1765261171776,0.41512897,90091.0,90090.0,0.07516]
[1765261172165,0.41512897,90091.0,90085.0,0.07516]
[1765261172166,0.0111018,90086.0,90085.0,0.07516]
[1765261172370,0.0111022,90083.0,90081.0,0.05765654]
[1765261172572,0.02512897,90082.0,90081.0,0.05765654]
[1765261172773,0.43512897,90082.0,90081.0,0.05765654]
[1765261173682,0.43512897,90082.0,90081.0,0.05865654]
[1765261174883,0.43512897,90082.0,90081.0,0.05965654]
[1765261181470,0.43512897,90082.0,90081.0,0.03196654]
[1765261181665,0.43512897,90082.0,90081.0,0.00216654]
[1765261182178,0.0111039,90069.0,90068.0,0.07516]
[1765261182483,0.4211039,90069.0,90068.0,0.07516]
[1765261182676,0.44623287,90069.0,90068.0,0.07516]
[1765261182872,0.43512897,90069.0,90068.0,0.07516]
[1765261183377,0.43512897,90069.0,90068.0,0.07716]
[1765261183778,0.43512897,90069.0,90068.0,0.07516]
[1765261183779,0.41,90069.0,90068.0,0.07516]
[1765261183980,0.41,90069.0,90068.0,0.07616]
[1765261189791,0.43490328,90069.0,90068.0,0.07616]
[1765261189978,0.43490328,90069.0,90068.0,0.04847]
[1765261190283,0.43490328,90069.0,90068.0,0.001]
[1765261190486,0.0111049,90061.0,90060.0,0.01767]
[1765261190786,0.3611049,90061.0,90059.0,0.00016654]
[1765261190987,0.02490169,90060.0,90059.0,0.00016654]
[1765261191189,0.40490169,90060.0,90059.0,0.00016654]
[1765261191772,0.38,90060.0,90059.0,0.05793654]
[1765261192186,0.381,90060.0,90059.0,0.05793654]
[1765261193194,0.381,90060.0,90059.0,0.00016654]
[1765261193592,0.40587682,90060.0,90059.0,0.00016654]
[1765261193793,0.381,90060.0,90059.0,0.00016654]
[1765261194489,0.381,90060.0,90059.0,0.02800654]
[1765261196396,0.381,90060.0,90059.0,0.05793654]
[1765261198697,0.381,90060.0,90059.0,0.06904164]
[1765261204994,0.38,90060.0,90059.0,0.06904164]
[1765261205306,0.381,90060.0,90059.0,0.06904164]
[1765261205495,0.001,90060.0,90059.0,0.06904164]
[1765261205799,0.04733836,90069.0,90068.0,0.068644]
[1765261205994,0.38500695,90069.0,90068.0,0.068644]
[1765261207009,0.361,90069.0,90068.0,0.068644]
[1765261207700,0.36,90069.0,90068.0,0.068644]
[1765261208007,0.361,90069.0,90068.0,0.068644]
[1765261208207,0.363,90069.0,90068.0,0.068644]
[1765261208508,0.362,90069.0,90068.0,0.068644]
[1765261209207,0.38704051,90069.0,90068.0,0.068644]
[1765261209907,0.39814441,90069.0,90068.0,0.068644]
[1765261210101,0.38704051,90069.0,90068.0,0.068644]
[1765261210608,0.38704051,90069.0,90068.0,0.086164]
[1765261211899,0.39814441,90069.0,90068.0,0.086164]
[1765261212100,0.38704051,90069.0,90068.0,0.086164]
[1765261212708,0.39814441,90069.0,90068.0,0.07506]
[1765261213609,0.39814441,90069.0,90068.0,0.04651]
[1765261213805,0.39814441,90069.0,90059.0,0.00016654]
[1765261213995,0.0111049,90061.0,90059.0,0.00016654]
[1765261214200,0.02504051,90060.0,90059.0,0.00016654]
[1765261214409,0.42504051,90060.0,90059.0,0.00016654]
[1765261214913,0.42504051,90060.0,90059.0,0.02851654]
[1765261215411,0.42504051,90060.0,90059.0,0.02951654]
[1765261215909,0.42504051,90060.0,90059.0,0.02851654]
[1765261216109,0.42604051,90060.0,90059.0,0.05739654]
[1765261219000,0.11604051,90060.0,90059.0,0.05739654]
[1765261219320,0.37604051,90060.0,90059.0,0.05739654]
[1765261220308,0.38714551,90060.0,90059.0,0.05739654]
[1765261220811,0.38614551,90060.0,90059.0,0.05739654]
[1765261221409,0.38614551,90060.0,90059.0,0.00016654]
[1765261221713,0.38614551,90060.0,90059.0,0.05739654]
[1765261221908,0.38714551,90060.0,90059.0,0.05739654]
[1765261223708,0.37604051,90060.0,90059.0,0.05739654]
[1765261224613,0.351,90060.0,90059.0,0.05739654]
[1765261224913,0.37607903,90060.0,90059.0,0.05739654]
[1765261234115,0.37507903,90060.0,90059.0,0.05739654]
[1765261247024,0.37507903,90060.0,90059.0,0.00016654]
[1765261247629,0.37507903,90060.0,90048.0,0.0447]
[1765261247826,0.0111067,90046.0,90045.0,0.02739]
[1765261248026,0.42618573,90046.0,90045.0,0.02739]
[1765261248228,0.42618573,90046.0,90044.0,0.0284169]
[1765261248528,0.02507903,90045.0,90044.0,0.0558069]
[1765261248830,0.44507903,90045.0,90044.0,0.0558069]
[1765261249338,0.44507903,90045.0,90044.0,0.0284169]
[1765261249821,0.44507903,90045.0,90044.0,0.0578069]
[1765261250426,0.44507903,90045.0,90044.0,0.0131069]
[1765261251030,0.44507903,90045.0,90044.0,0.0424969]
[1765261252124,0.44507903,90045.0,90044.0,0.0887469]
[1765261252930,0.44607903,90045.0,90044.0,0.0847469]
[1765261255232,0.421,90045.0,90044.0,0.0847469]
[1765261263837,0.44601051,90045.0,90044.0,0.0847469]
[1765261264243,0.421,90045.0,90044.0,0.0847469]
[1765261265443,0.44601208,90045.0,90044.0,0.0847469]
[1765261266143,0.421,90045.0,90044.0,0.0847469]
[1765261266345,0.44601253,90045.0,90044.0,0.0847469]
[1765261267151,0.421,90045.0,90044.0,0.0847469]
[1765261268555,0.42,90045.0,90044.0,0.0847469]
[1765261269256,0.44501871,90045.0,90044.0,0.0847469]
[1765261271852,0.12501871,90045.0,90044.0,0.0847469]
[1765261272061,0.02501871,90045.0,90044.0,0.0847469]
[1765261273860,0.40502358,90045.0,90044.0,0.07364]
[1765261274958,0.40502358,90045.0,90044.0,0.001]
[1765261275361,0.40502358,90045.0,90035.0,0.00016654]
[1765261275362,0.0111078,90037.0,90035.0,0.00016654]
[1765261275564,0.0111097,90022.0,90020.0,0.07339]
[1765261275864,0.41,90022.0,90021.0,0.0671998]
[1765261276054,0.43528616,90022.0,90021.0,0.0671998]
[1765261276250,0.43527408,90022.0,90021.0,0.0671998]
[1765261276551,0.43527408,90022.0,90021.0,0.05609]
[1765261276867,0.43527408,90022.0,90020.0,0.0173]
[1765261277159,0.0111099,90020.0,90017.0,0.02825]
[1765261277353,0.0111099,90020.0,90013.0,0.0111107]
[1765261277354,0.35,90020.0,90015.0,0.02936093]
[1765261277554,0.02526123,90019.0,90015.0,0.07450093]
[1765261277758,0.02526123,90018.0,90015.0,0.07450093]
[1765261277951,0.0111103,90017.0,90015.0,0.07450093]
[1765261278152,0.3711103,90017.0,90015.0,0.00111093]
[1765261278353,0.02528425,90016.0,90015.0,0.00111093]
[1765261278567,0.44528425,90016.0,90015.0,0.00211093]
[1765261278862,0.44528425,90016.0,90015.0,0.00311093]
[1765261279167,0.42,90016.0,90015.0,0.07650093]
[1765261279351,0.4311104,90016.0,90015.0,0.00311093]
[1765261279965,0.4311104,90016.0,90015.0,0.00211093]
[1765261280267,0.4311104,90016.0,90015.0,0.00311093]
[1765261280668,0.4311104,90016.0,90015.0,0.03136093]
[1765261280866,0.42,90016.0,90015.0,0.07650093]
[1765261281057,0.42,90016.0,90015.0,0.07550093]
[1765261281257,0.421,90016.0,90015.0,0.07450093]
[1765261293274,0.421,90016.0,90015.0,0.00111093]
[1765261300072,0.421,90016.0,90015.0,0.05720093]
[1765261303270,0.44629624,90016.0,90015.0,0.05720093]
[1765261305488,0.44629624,90016.0,90015.0,0.00111093]
[1765261305679,0.0111105,90015.0,90012.0,0.00011123]
[1765261305981,0.0111116,90006.0,90000.0,0.0173]
[1765261306287,0.0111119,90004.0,90000.0,0.0173]
[1765261306481,0.45640814,90004.0,89990.0,0.0280236]
[1765261306683,0.0111133,89993.0,89990.0,0.04675]
[1765261306871,0.0111135,89991.0,89990.0,0.04675]
[1765261307072,0.43640974,89991.0,89990.0,0.04675]
[1765261307680,0.43651448,89991.0,89990.0,0.07439]
[1765261307880,0.42540098,89991.0,89990.0,0.07439]
[1765261309087,0.42540098,89991.0,89990.0,0.07639]
[1765261310288,0.40010474,89991.0,89990.0,0.07639]
[1765261310782,0.42529687,89991.0,89990.0,0.002]
[1765261311090,0.42529687,89991.0,89990.0,0.03184]
[1765261311288,0.40010474,89991.0,89990.0,0.03184]
[1765261311488,0.40010474,89991.0,89990.0,0.04686]
[1765261311687,0.40010474,89991.0,89990.0,0.07415]
[1765261320887,0.40010474,89991.0,89990.0,0.0852636]
[1765261321494,0.41121824,89991.0,89990.0,0.0852636]
[1765261322195,0.40010474,89991.0,89990.0,0.0852636]
[1765261326598,0.00010474,89991.0,89990.0,0.0852636]
[1765261326802,0.00016663,90000.0,89999.0,0.0666625]
[1765261327001,0.12016663,90000.0,89999.0,0.0666625]
[1765261327401,0.00016663,90000.0,89999.0,0.0666625]
[1765261328302,0.00016663,90000.0,89999.0,0.0696625]
[1765261329497,0.36016663,90000.0,89999.0,0.0696625]
[1765261329706,0.36016663,90000.0,89999.0,0.05855]
[1765261335398,0.36016663,90000.0,89999.0,0.03137]
[1765261335796,0.36016663,90000.0,89999.0,0.05913]
[1765261354422,0.37127903,90000.0,89999.0,0.03137]
[1765261354626,0.39634674,90000.0,89999.0,0.03137]
[1765261355225,0.39634674,90000.0,89999.0,0.05913]
[1765261357724,0.38523434,90000.0,89999.0,0.05913]
[1765261360214,0.11523434,90000.0,89999.0,0.05913]
[1765261360415,0.02523434,90000.0,89999.0,0.05913]
[1765261369427,0.00016663,90000.0,89999.0,0.05913]
[1765261369629,0.02524569,90000.0,89999.0,0.05913]
[1765261372132,0.0111102,90018.0,90016.0,0.0171]
[1765261372333,0.4111102,90018.0,90017.0,0.0552]
[1765261372635,0.43618825,90018.0,90017.0,0.0552]
[1765261373333,0.43718825,90018.0,90017.0,0.0552]
[1765261374033,0.43818825,90018.0,90017.0,0.0552]
[1765261374233,0.43918825,90018.0,90017.0,0.0552]
[1765261374732,0.42807805,90018.0,90017.0,0.0552]
[1765261375935,0.42607805,90018.0,90017.0,0.0552]
[1765261376135,0.42807805,90018.0,90017.0,0.0552]
[1765261376330,0.42707805,90018.0,90017.0,0.0552]
[1765261376527,0.42807805,90018.0,90017.0,0.0552]
[1765261387433,0.42799744,90018.0,90017.0,0.0552]
[1765261390446,0.42799744,90018.0,90017.0,0.02725]
[1765261391050,0.0111103,90017.0,90012.0,0.07335]
[1765261391348,0.02499744,90016.0,90012.0,0.07335]
[1765261391548,0.39499744,90016.0,90015.0,0.0673605]
[1765261392740,0.39599744,90016.0,90015.0,0.0673605]
[1765261392939,0.39699744,90016.0,90015.0,0.0673605]
[1765261395353,0.39599744,90016.0,90015.0,0.0673605]
[1765261395549,0.39699744,90016.0,90015.0,0.0673605]
[1765261395749,0.39599744,90016.0,90015.0,0.0673605]
[1765261395949,0.39699744,90016.0,90015.0,0.0673605]
[1765261396548,0.0111105,90015.0,90011.0,0.0111109]
[1765261396858,0.02499744,90014.0,90011.0,0.0683409]
[1765261397042,0.39499744,90014.0,90013.0,0.0387308]
[1765261397851,0.39499744,90014.0,90013.0,0.0683408]
[1765261399348,0.00016663,90027.0,90026.0,0.0683392]
[1765261399551,0.35016663,90027.0,90026.0,0.0683392]
[1765261399751,0.37518718,90027.0,90026.0,0.0683392]
[1765261400855,0.0111095,90024.0,90022.0,0.0111096]
[1765261401056,0.02502055,90023.0,90022.0,0.0387296]
[1765261401255,0.38502055,90023.0,90022.0,0.0683396]
[1765261403657,0.38602055,90023.0,90022.0,0.0683396]
[1765261408464,0.361,90023.0,90022.0,0.0683396]
[1765261409964,0.38600396,90023.0,90022.0,0.0683396]
[1765261410355,0.38500396,90023.0,90022.0,0.0683396]
[1765261411153,0.36,90023.0,90022.0,0.0683396]
[1765261418968,0.00016663,90027.0,90026.0,0.0683392]
[1765261419166,0.37520149,90027.0,90026.0,0.0683392]
[1765261419965,0.00016663,90027.0,90026.0,0.0683392]
[1765261420858,0.04853096,90040.0,90039.0,0.0683376]
[1765261421163,0.39614865,90040.0,90039.0,0.0683376]
[1765261422669,0.39714865,90040.0,90039.0,0.0683376]
[1765261425959,0.37211062,90040.0,90039.0,0.0683376]
[1765261428870,0.37111062,90040.0,90039.0,0.0683376]
[1765261432971,0.00111062,90040.0,90039.0,0.0683376]
[1765261433676,0.00016663,90049.0,90048.0,0.0858465]
[1765261433858,0.04742034,90060.0,90059.0,0.0679851]
[1765261434057,0.0111043,90066.0,90062.0,0.0679847]
[1765261434275,0.02502042,90065.0,90064.0,0.07474]
[1765261434465,0.44502042,90065.0,90064.0,0.07474]
[1765261435970,0.44702042,90065.0,90064.0,0.07474]
[1765261436562,0.422,90065.0,90064.0,0.07474]
[1765261436772,0.425,90065.0,90064.0,0.07474]
[1765261438675,0.005,90065.0,90064.0,0.07474]
[1765261438977,0.385,90065.0,90064.0,0.07474]
[1765261440780,0.385,90065.0,90064.0,0.04739]
[1765261440975,0.0111049,90061.0,90058.0,0.02953]
[1765261441177,0.4311049,90061.0,90058.0,0.02953]
[1765261441477,0.42,90061.0,90059.0,0.0111051]
[1765261441670,0.42,90061.0,90059.0,0.0679851]
[1765261442072,0.42,90061.0,90060.0,0.07474]
[1765261442278,0.422,90061.0,90060.0,0.07474]
[1765261442671,0.422,90061.0,90056.0,0.04596]
[1765261442880,0.0111054,90057.0,90055.0,0.00016663]
[1765261443078,0.3611054,90057.0,90055.0,0.00016663]
[1765261443379,0.02484543,90056.0,90055.0,0.00016663]
[1765261443580,0.40484543,90056.0,90055.0,0.00016663]
[1765261444869,0.40584543,90056.0,90055.0,0.00016663]
[1765261446079,0.40884543,90056.0,90055.0,0.00016663]
[1765261447077,0.41084543,90056.0,90055.0,0.00016663]
[1765261451475,0.41084543,90056.0,90055.0,0.02826663]
[1765261451876,0.41084543,90056.0,90055.0,0.00016663]
[1765261453680,0.40884543,90056.0,90055.0,0.00016663]
[1765261453881,0.41084543,90056.0,90055.0,0.00016663]
[1765261454089,0.40684543,90056.0,90055.0,0.00016663]
[1765261454282,0.41084543,90056.0,90055.0,0.00016663]
[1765261455082,0.41084543,90056.0,90055.0,0.07476663]
[1765261455485,0.41084543,90056.0,90055.0,0.00016663]
[1765261455696,0.40684543,90056.0,90055.0,0.00016663]
[1765261455993,0.41084543,90056.0,90055.0,0.00016663]
[1765261456685,0.41084543,90056.0,90055.0,0.02875663]
[1765261457387,0.41084543,90056.0,90055.0,0.00016663]
[1765261457989,0.41084543,90056.0,90055.0,0.02875663]
[1765261459783,0.41084543,90056.0,90055.0,0.00016663]
[1765261464394,0.41084543,90056.0,90055.0,0.05727663]
[1765261468492,0.41084543,90056.0,90055.0,0.00016663]
[1765261470298,0.41084543,90056.0,90044.0,0.01749]
[1765261470493,0.0111068,90045.0,90044.0,0.04608]
[1765261470796,0.0111073,90041.0,90040.0,0.07413]
[1765261471091,0.45595273,90041.0,90020.0,0.01749]
[1765261471290,0.0111098,90022.0,90021.0,0.05727663]
[1765261471495,0.4211098,90022.0,90021.0,0.05727663]
[1765261471896,0.44610322,90022.0,90021.0,0.05727663]
[1765261472284,0.4211098,90022.0,90021.0,0.05727663]
[1765261473388,0.41,90022.0,90021.0,0.05727663]
[1765261473590,0.411,90022.0,90021.0,0.05727663]
[1765261480705,0.41,90022.0,90021.0,0.05727663]
[1765261494827,0.04756354,90040.0,90039.0,0.05713]
[1765261495117,0.44513761,90040.0,90039.0,0.05713]
[1765261496014,0.45624511,90040.0,90039.0,0.05713]
[1765261496521,0.46024511,90040.0,90039.0,0.05713]
[1765261496716,0.46224511,90040.0,90039.0,0.05713]
[1765261497026,0.45824511,90040.0,90039.0,0.05713]
[1765261497226,0.46124511,90040.0,90039.0,0.05713]
[1765261498616,0.46124511,90040.0,90039.0,0.02791]
[1765261500627,0.45013761,90040.0,90032.0,0.0857884]
[1765261500825,0.02497098,90039.0,90029.0,0.02791]
[1765261501026,0.0111087,90030.0,90029.0,0.02791]
[1765261501219,0.4111087,90030.0,90029.0,0.02791]
[1765261501529,0.43607968,90030.0,90029.0,0.02791]
[1765261502320,0.43607968,90030.0,90029.0,0.05713]
[1765261502521,0.42497098,90030.0,90029.0,0.05713]
[1765261503015,0.51528,90039.0,90038.0,0.0682377]
[1765261503223,0.00016663,90040.0,90038.0,0.0682377]
[1765261503224,0.00016663,90040.0,90039.0,0.05713]
[1765261503421,0.43016663,90040.0,90039.0,0.05713]
[1765261505436,0.43116663,90040.0,90039.0,0.05713]
[1765261505622,0.0111076,90039.0,90036.0,0.04546]
[1765261505829,0.4011076,90039.0,90036.0,0.04546]
[1765261506029,0.4011076,90039.0,90036.0,0.07468]
[1765261506830,0.4011076,90039.0,90037.0,0.0664678]
[1765261508830,0.4011076,90039.0,90037.0,0.0674678]
[1765261509031,0.4011076,90039.0,90037.0,0.02909]
[1765261509227,0.4011076,90039.0,90037.0,0.05654]
[1765261509730,0.4011076,90039.0,90037.0,0.001]
[1765261511022,0.0111093,90025.0,90020.0,0.0274399]
[1765261511240,0.3911093,90025.0,90020.0,0.01633]
[1765261512433,0.3911093,90025.0,90016.0,0.01633]
[1765261512624,0.3921093,90025.0,90016.0,0.01633]
[1765261513134,0.3921093,90025.0,90008.0,0.01633]
[1765261513335,0.3921093,90025.0,90003.0,0.00011329]
[1765261513630,0.0111119,90004.0,90003.0,0.00011329]
[1765261513836,0.3911119,90004.0,90003.0,0.00011329]
[1765261515033,0.3911119,90004.0,90003.0,0.00211329]
[1765261518131,0.3911119,90004.0,90003.0,0.03152329]
[1765261521040,0.3911119,90004.0,90003.0,0.06080329]
[1765261521443,0.3911119,90004.0,90003.0,0.00211329]
[1765261521842,0.3911119,90004.0,90003.0,0.03152329]
[1765261522742,0.0111157,89973.0,89969.0,0.07967917]
[1765261522940,0.0111157,89973.0,89964.0,0.01697]
[1765261522941,0.0111165,89967.0,89964.0,0.01697]
[1765261523146,0.3611165,89967.0,89950.0,0.01697]
[1765261523743,0.00012953,89966.0,89950.0,0.01697]
[1765261523946,0.39012953,89966.0,89950.0,0.07566]
[1765261524129,0.04739691,89960.0,89950.0,0.07566]
[1765261524335,0.0111181,89955.0,89950.0,0.07566]
[1765261524531,0.4011181,89955.0,89950.0,0.07566]
[1765261525244,0.0111184,89952.0,89950.0,0.07566]
[1765261525435,0.00012953,89951.0,89950.0,0.07666]
[1765261525636,0.40012953,89951.0,89950.0,0.07666]
[1765261526349,0.40012953,89951.0,89950.0,0.01897]
[1765261526730,0.40012953,89951.0,89950.0,0.002]
[1765261526935,0.40012953,89951.0,89950.0,0.03041]
[1765261527135,0.40012953,89951.0,89950.0,0.03141]
[1765261527330,0.40012953,89951.0,89950.0,0.03041]
[1765261527536,0.40012953,89951.0,89950.0,0.03141]
[1765261527736,0.40012953,89951.0,89950.0,0.03041]
[1765261527939,0.40012953,89951.0,89950.0,0.03141]
[1765261530449,0.40012953,89951.0,89950.0,0.06069]
[1765261532843,0.40012953,89951.0,89950.0,0.002]
[1765261533041,0.40012953,89951.0,89934.0,0.01697]
[1765261533042,0.0146,89935.0,89934.0,0.07566]
[1765261533247,0.39469357,89935.0,89934.0,0.07566]
[1765261533649,0.05469357,89935.0,89934.0,0.07566]
[1765261534148,0.04739357,89935.0,89934.0,0.07566]
[1765261534354,0.37739357,89935.0,89934.0,0.07566]
[1765261534555,0.38469357,89935.0,89934.0,0.07766]
[1765261535155,0.37739357,89935.0,89934.0,0.07766]
[1765261536358,0.37839357,89935.0,89934.0,0.07566]
[1765261536556,0.00109357,89935.0,89934.0,0.07566]
[1765261536759,0.05569357,89935.0,89934.0,0.07566]
[1765261536944,0.0146,89920.0,89919.0,0.07003482]
[1765261537150,0.4246,89920.0,89919.0,0.07003482]
[1765261537345,0.04750472,89929.0,89919.0,0.07003482]
[1765261537346,0.0146,89929.0,89928.0,0.0867813]
[1765261537555,0.4146,89929.0,89928.0,0.0867813]
[1765261537951,0.18,89929.0,89928.0,0.0867813]
[1765261539060,0.01569357,89935.0,89934.0,0.0867805]
[1765261539258,0.38569357,89935.0,89934.0,0.0867805]
[1765261539862,0.38469357,89935.0,89934.0,0.0867805]
[1765261541163,0.38469357,89935.0,89934.0,0.0897805]
[1765261542155,0.10009357,89935.0,89934.0,0.0917805]
[1765261542753,0.40009357,89935.0,89934.0,0.0917805]
[1765261543156,0.40739357,89935.0,89934.0,0.0917805]
[1765261543351,0.41469357,89935.0,89934.0,0.0917805]
[1765261545662,9.357e-05,89935.0,89934.0,0.0917805]
[1765261546765,0.01469357,89935.0,89934.0,0.0161205]
[1765261546968,0.43469357,89935.0,89934.0,0.005]
[1765261547476,0.4594576,89935.0,89934.0,0.005]
[1765261549870,0.4594576,89935.0,89919.0,0.05871242]
[1765261549871,0.0146,89920.0,89919.0,0.05871242]
[1765261550057,0.39472369,89920.0,89919.0,0.05871242]
[1765261550762,0.39472369,89920.0,89919.0,0.00022242]
[1765261552364,0.41960027,89920.0,89919.0,0.00022242]
[1765261552557,0.41960027,89920.0,89919.0,0.03075242]
[1765261553366,0.41960027,89920.0,89919.0,0.05971242]
[1765261554166,0.41960027,89920.0,89919.0,0.00122242]
[1765261554367,0.41960027,89920.0,89919.0,0.05971242]
[1765261555661,0.41960027,89920.0,89919.0,0.00122242]
[1765261556561,0.41960027,89920.0,89919.0,0.05971242]
[1765261557574,0.41900035,89920.0,89919.0,0.05971242]
[1765261558063,0.41900035,89920.0,89919.0,0.05871242]
[1765261558569,0.42100035,89920.0,89919.0,0.05871242]
[1765261558871,0.42100035,89920.0,89919.0,0.00022242]
[1765261560074,0.42200035,89920.0,89919.0,0.00022242]
[1765261560269,0.0134,89916.0,89915.0,0.00111217]
[1765261560472,0.0134,89893.0,89892.0,0.07475]
[1765261560666,0.3934,89893.0,89892.0,0.07475]
[1765261560866,0.0134,89891.0,89890.0,0.00111248]
[1765261561161,0.4434,89891.0,89890.0,0.05960248]
[1765261561366,0.19827771,89891.0,89890.0,0.05960248]
[1765261561567,0.46835709,89891.0,89890.0,0.05960248]
[1765261562377,0.46835709,89891.0,89890.0,0.00111248]
[1765261562669,0.46835709,89891.0,89890.0,0.00211248]
[1765261562866,0.0134,89876.0,89875.0,0.05584]
[1765261563070,0.44351075,89876.0,89875.0,0.05584]
[1765261563672,0.44351075,89876.0,89867.0,0.0111288]
[1765261563673,0.0134,89869.0,89868.0,0.0721]
[1765261563873,0.43011075,89876.0,89875.0,0.05584]
[1765261563874,0.00011075,89876.0,89875.0,0.05584]
[1765261564067,0.00011075,89876.0,89875.0,0.05784]
[1765261564778,0.00111075,89876.0,89875.0,0.06284]
[1765261565274,0.00011075,89876.0,89875.0,0.05984]
[1765261565672,0.024765,89898.0,89897.0,0.05584]
[1765261565874,0.394765,89898.0,89897.0,0.05584]
[1765261566068,0.41977045,89898.0,89897.0,0.05584]
[1765261566879,0.41987035,89898.0,89897.0,0.05584]
[1765261568079,0.01396,89895.0,89894.0,0.01736]
[1765261568379,0.01396,89890.0,89889.0,0.02796682]
[1765261568567,0.39396,89890.0,89889.0,0.00016682]
[1765261568774,0.39396,89890.0,89875.0,0.0298]
[1765261568775,0.01396,89876.0,89875.0,0.0298]
[1765261568975,0.36409614,89876.0,89875.0,0.0298]
[1765261569380,0.00013614,89876.0,89875.0,0.05784]